[Event "Titled Tuesday Blitz March 29 Late 2022"]
[White "Fernandez Siles, Luis"]
[Black "Karttunen, Mika"]
[WhiteFideId "2209420"]
[BlackFideId "502081"]
[WhiteElo "2212"]
[BlackElo "2343"]
[Result "0-1"]
[Round "06"]
[TimeControl "180+1"]
[Date "2022.03.30"]
[WhiteClock "0:00:04"]
[BlackClock "0:00:07"]

1. e4 {[%clk 0:03:00]}  c5 {[%clk 0:02:56]} 2. c3 {[%clk 0:03:00]}  d5 {[%clk 0:02:56]} 3. exd5 {[%clk 0:03:00]}  Qxd5 {[%clk 0:02:57]} 4. d4 {[%clk 0:03:00]}  Nc6 {[%clk 0:02:57]} 5. Nf3 {[%clk 0:02:59]}  Bg4 {[%clk 0:02:57]} 6. Nbd2 {[%clk 0:02:54]}  cxd4 {[%clk 0:02:56]} 7. Bc4 {[%clk 0:02:49]}  Qd7 {[%clk 0:02:50]} 8. cxd4 {[%clk 0:02:34]}  e6 {[%clk 0:02:50]} 9. h3 {[%clk 0:02:26]}  Bh5 {[%clk 0:02:39]} 10. Nb3 {[%clk 0:02:07]}  Bb4+ {[%clk 0:02:22]} 11. Bd2 {[%clk 0:02:06]}  Bxd2+ {[%clk 0:02:22]} 12. Qxd2 {[%clk 0:02:07]}  Bxf3 {[%clk 0:02:21]} 13. gxf3 {[%clk 0:02:07]}  Nge7 {[%clk 0:02:17]} 14. Rg1 {[%clk 0:02:07]}  O-O {[%clk 0:02:09]} 15. O-O-O {[%clk 0:02:00]}  Rac8 {[%clk 0:01:46]} 16. Kb1 {[%clk 0:02:00]}  Nf5 {[%clk 0:01:40]} 17. Bd3 {[%clk 0:01:37]}  Nce7 {[%clk 0:01:33]} 18. Be4 {[%clk 0:01:22]}  b6 {[%clk 0:01:30]} 19. Rg4 {[%clk 0:01:15]}  Rfd8 {[%clk 0:01:22]} 20. h4 {[%clk 0:01:04]}  a5 {[%clk 0:01:13]} 21. d5 {[%clk 0:00:31]}  exd5 {[%clk 0:01:06]} 22. Bd3 {[%clk 0:00:31]}  Qe6 {[%clk 0:00:31]} 23. Rdg1 {[%clk 0:00:29]}  Qf6 {[%clk 0:00:29]} 24. h5 {[%clk 0:00:22]}  Kh8 {[%clk 0:00:28]} 25. Rg5 {[%clk 0:00:20]}  d4 {[%clk 0:00:27]} 26. Qf4 {[%clk 0:00:19]}  Rd5 {[%clk 0:00:22]} 27. Nd2 {[%clk 0:00:17]}  g6 {[%clk 0:00:21]} 28. Ne4 {[%clk 0:00:16]}  Qe5 {[%clk 0:00:21]} 29. Qg4 {[%clk 0:00:14]}  Qc7 {[%clk 0:00:18]} 30. hxg6 {[%clk 0:00:12]}  fxg6 {[%clk 0:00:18]} 31. Nf6 {[%clk 0:00:11]}  Rd6 {[%clk 0:00:17]} 32. Nxh7 {[%clk 0:00:10]}  Kxh7 {[%clk 0:00:16]} 33. Bxf5 {[%clk 0:00:10]}  Nxf5 {[%clk 0:00:15]} 34. Rh1+ {[%clk 0:00:10]}  Nh6 {[%clk 0:00:13]} 35. Rxh6+ {[%clk 0:00:08]}  Kxh6 {[%clk 0:00:12]} 36. a3 {[%clk 0:00:06]}  d3 {[%clk 0:00:11]} 37. Qh4+ {[%clk 0:00:06]}  Kg7 {[%clk 0:00:11]} 38. Re5 {[%clk 0:00:05]}  Rd7 {[%clk 0:00:08]} 39. Qd4 {[%clk 0:00:04]}  Rxd4 {[%clk 0:00:07]} 0-1


[Site "https://www.chess.com"]

[Event "Titled Tuesday Blitz March 29 Late 2022"]
[White "Goltsev, Dmitry"]
[Black "Lewicki, Miroslaw"]
[WhiteFideId "24176710"]
[BlackFideId "1113380"]
[WhiteElo "2273"]
[BlackElo "2283"]
[Result "1-0"]
[Round "06"]
[TimeControl "180+1"]
[Date "2022.03.30"]
[WhiteClock "0:00:51"]
[BlackClock "0:00:07"]

1. e4 {[%clk 0:02:59]}  c5 {[%clk 0:02:56]} 2. Nf3 {[%clk 0:02:58]}  d6 {[%clk 0:02:56]} 3. d4 {[%clk 0:02:57]}  cxd4 {[%clk 0:02:57]} 4. Nxd4 {[%clk 0:02:58]}  Nf6 {[%clk 0:02:57]} 5. Nc3 {[%clk 0:02:56]}  a6 {[%clk 0:02:58]} 6. Bg5 {[%clk 0:02:56]}  Nbd7 {[%clk 0:02:53]} 7. Qd2 {[%clk 0:02:54]}  Qc7 {[%clk 0:02:53]} 8. O-O-O {[%clk 0:02:53]}  e6 {[%clk 0:02:49]} 9. f4 {[%clk 0:02:52]}  Be7 {[%clk 0:02:43]} 10. Be2 {[%clk 0:02:46]}  b6 {[%clk 0:02:28]} 11. Bf3 {[%clk 0:02:35]}  Bb7 {[%clk 0:02:27]} 12. Rhe1 {[%clk 0:02:35]}  h6 {[%clk 0:02:23]} 13. Bh4 {[%clk 0:02:32]}  g5 {[%clk 0:02:17]} 14. fxg5 {[%clk 0:02:31]}  Nh7 {[%clk 0:02:17]} 15. Kb1 {[%clk 0:02:14]}  hxg5 {[%clk 0:02:14]} 16. Bg3 {[%clk 0:02:12]}  Ne5 {[%clk 0:02:12]} 17. h3 {[%clk 0:02:09]}  Nf6 {[%clk 0:02:04]} 18. Nb3 {[%clk 0:02:05]}  g4 {[%clk 0:01:54]} 19. hxg4 {[%clk 0:02:03]}  Nfxg4 {[%clk 0:01:54]} 20. Bxg4 {[%clk 0:02:02]}  Nxg4 {[%clk 0:01:52]} 21. Bxd6 {[%clk 0:02:03]}  Bxd6 {[%clk 0:01:50]} 22. Qxd6 {[%clk 0:02:03]}  Qxd6 {[%clk 0:01:42]} 23. Rxd6 {[%clk 0:02:04]}  b5 {[%clk 0:01:29]} 24. Na5 {[%clk 0:01:59]}  Rb8 {[%clk 0:01:18]} 25. Red1 {[%clk 0:01:58]}  Rh2 {[%clk 0:01:07]} 26. a3 {[%clk 0:01:48]}  Rxg2 {[%clk 0:01:05]} 27. Nxb7 {[%clk 0:01:47]}  Rxb7 {[%clk 0:01:04]} 28. Rxa6 {[%clk 0:01:47]}  Ne3 {[%clk 0:00:53]} 29. Rc1 {[%clk 0:01:42]}  b4 {[%clk 0:00:46]} 30. axb4 {[%clk 0:01:41]}  Rxb4 {[%clk 0:00:46]} 31. b3 {[%clk 0:01:40]}  Nc4 {[%clk 0:00:40]} 32. Rc6 {[%clk 0:01:37]}  Nd2+ {[%clk 0:00:35]} 33. Ka1 {[%clk 0:01:32]}  Nxe4 {[%clk 0:00:35]} 34. Kb2 {[%clk 0:01:27]}  Nxc3 {[%clk 0:00:33]} 35. Rxc3 {[%clk 0:01:28]}  Rd2 {[%clk 0:00:31]} 36. Ra1 {[%clk 0:01:20]}  Rb7 {[%clk 0:00:28]} 37. Ra8+ {[%clk 0:01:16]}  Ke7 {[%clk 0:00:28]} 38. Rh8 {[%clk 0:01:12]}  e5 {[%clk 0:00:27]} 39. Rc4 {[%clk 0:01:12]}  Ke6 {[%clk 0:00:27]} 40. Rc5 {[%clk 0:01:07]}  Rbd7 {[%clk 0:00:24]} 41. Re8+ {[%clk 0:01:03]}  Re7 {[%clk 0:00:25]} 42. Rxe5+ {[%clk 0:00:59]}  Kxe5 {[%clk 0:00:25]} 43. Rxe7+ {[%clk 0:00:59]}  Kf6 {[%clk 0:00:25]} 44. Ra7 {[%clk 0:01:00]}  Ke6 {[%clk 0:00:25]} 45. Kc3 {[%clk 0:00:59]}  Rd8 {[%clk 0:00:22]} 46. b4 {[%clk 0:01:00]}  f5 {[%clk 0:00:21]} 47. b5 {[%clk 0:00:59]}  f4 {[%clk 0:00:19]} 48. Ra1 {[%clk 0:00:58]}  Rc8+ {[%clk 0:00:07]} 49. Kb3 {[%clk 0:00:57]}  Kd5 {[%clk 0:00:08]} 50. Rd1+ {[%clk 0:00:51]}  Kc5 {[%clk 0:00:08]} 51. c4 {[%clk 0:00:51]}  f3 {[%clk 0:00:07]} 52. Rd5+ {[%clk 0:00:51]}  Kb6 {[%clk 0:00:07]} 53. Rf5 {[%clk 0:00:51]} 1-0


[Site "https://www.chess.com"]

[Event "Titled Tuesday Blitz March 29 Late 2022"]
[White "Goryachkina, Aleksandra"]
[Black "Karas, Marek"]
[WhiteFideId "4147103"]
[BlackFideId "14928558"]
[WhiteElo "2426"]
[BlackElo "2271"]
[Result "1-0"]
[Round "06"]
[TimeControl "180+1"]
[Date "2022.03.30"]
[WhiteClock "0:00:02"]
[BlackClock "0:00:07"]

1. e4 {[%clk 0:03:00]}  e6 {[%clk 0:02:59]} 2. d4 {[%clk 0:02:59]}  d5 {[%clk 0:03:00]} 3. Nd2 {[%clk 0:03:00]}  a6 {[%clk 0:03:00]} 4. Ngf3 {[%clk 0:02:57]}  c5 {[%clk 0:03:00]} 5. exd5 {[%clk 0:02:52]}  exd5 {[%clk 0:03:01]} 6. Be2 {[%clk 0:02:49]}  Nf6 {[%clk 0:03:01]} 7. O-O {[%clk 0:02:49]}  Nc6 {[%clk 0:03:00]} 8. dxc5 {[%clk 0:02:48]}  Bxc5 {[%clk 0:02:59]} 9. Nb3 {[%clk 0:02:48]}  Bb6 {[%clk 0:02:59]} 10. Bg5 {[%clk 0:02:46]}  O-O {[%clk 0:02:59]} 11. c3 {[%clk 0:02:43]}  Be6 {[%clk 0:02:52]} 12. Nfd4 {[%clk 0:02:43]}  h6 {[%clk 0:02:51]} 13. Bh4 {[%clk 0:02:42]}  g5 {[%clk 0:02:50]} 14. Bg3 {[%clk 0:02:42]}  Ne4 {[%clk 0:02:50]} 15. Bf3 {[%clk 0:02:28]}  Qf6 {[%clk 0:02:44]} 16. Re1 {[%clk 0:01:42]}  Nxg3 {[%clk 0:02:36]} 17. hxg3 {[%clk 0:01:42]}  Nxd4 {[%clk 0:02:29]} 18. Nxd4 {[%clk 0:01:42]}  Bxd4 {[%clk 0:02:28]} 19. cxd4 {[%clk 0:01:42]}  Rac8 {[%clk 0:02:26]} 20. Re5 {[%clk 0:01:41]}  Rfd8 {[%clk 0:02:17]} 21. Qd3 {[%clk 0:01:11]}  b5 {[%clk 0:02:06]} 22. Rae1 {[%clk 0:01:10]}  Rc4 {[%clk 0:01:59]} 23. b3 {[%clk 0:01:08]}  Rc6 {[%clk 0:01:55]} 24. Qe3 {[%clk 0:00:40]}  Rc2 {[%clk 0:01:50]} 25. a3 {[%clk 0:00:40]}  Rdc8 {[%clk 0:01:37]} 26. Rd1 {[%clk 0:00:20]}  g4 {[%clk 0:01:30]} 27. Be2 {[%clk 0:00:17]}  Kg7 {[%clk 0:01:09]} 28. Bd3 {[%clk 0:00:16]}  R2c3 {[%clk 0:01:05]} 29. a4 {[%clk 0:00:12]}  Rxb3 {[%clk 0:00:54]} 30. axb5 {[%clk 0:00:12]}  axb5 {[%clk 0:00:55]} 31. Qe2 {[%clk 0:00:11]}  Rbc3 {[%clk 0:00:48]} 32. Bxb5 {[%clk 0:00:10]}  Rc2 {[%clk 0:00:35]} 33. Qe1 {[%clk 0:00:09]}  R8c3 {[%clk 0:00:23]} 34. Bf1 {[%clk 0:00:06]}  Ra3 {[%clk 0:00:15]} 35. Re2 {[%clk 0:00:06]}  Raa2 {[%clk 0:00:14]} 36. Rxc2 {[%clk 0:00:06]}  Rxc2 {[%clk 0:00:15]} 37. Qe3 {[%clk 0:00:06]}  Ra2 {[%clk 0:00:12]} 38. Bd3 {[%clk 0:00:06]}  Ra3 {[%clk 0:00:09]} 39. Qe2 {[%clk 0:00:04]}  Qxd4 {[%clk 0:00:07]} 40. Bf5 {[%clk 0:00:02]} 1-0


[Site "https://www.chess.com"]

[Event "Titled Tuesday Blitz March 29 Late 2022"]
[White "Gracia Alvarez, Gerardo Antonio"]
[Black "Erdogdu, Mert"]
[WhiteFideId "5109124"]
[BlackFideId "6301495"]
[WhiteElo "2139"]
[BlackElo "2485"]
[Result "1-0"]
[Round "06"]
[TimeControl "180+1"]
[Date "2022.03.30"]
[WhiteClock "0:00:06"]
[BlackClock "0:00:07"]

1. e4 {[%clk 0:03:00]}  c5 {[%clk 0:02:59]} 2. Nc3 {[%clk 0:03:00]}  d6 {[%clk 0:02:59]} 3. d4 {[%clk 0:03:00]}  cxd4 {[%clk 0:02:59]} 4. Qxd4 {[%clk 0:03:01]}  Nc6 {[%clk 0:03:00]} 5. Qd2 {[%clk 0:03:01]}  g6 {[%clk 0:03:00]} 6. b3 {[%clk 0:03:01]}  Bh6 {[%clk 0:03:00]} 7. f4 {[%clk 0:03:01]}  Nf6 {[%clk 0:03:00]} 8. Bb2 {[%clk 0:02:59]}  O-O {[%clk 0:03:00]} 9. O-O-O {[%clk 0:02:56]}  e5 {[%clk 0:03:01]} 10. Nge2 {[%clk 0:02:54]}  Re8 {[%clk 0:02:52]} 11. Kb1 {[%clk 0:02:45]}  Bg4 {[%clk 0:02:43]} 12. g3 {[%clk 0:02:20]}  exf4 {[%clk 0:02:20]} 13. gxf4 {[%clk 0:02:19]}  Bf3 {[%clk 0:01:08]} 14. Rg1 {[%clk 0:02:18]}  Rc8 {[%clk 0:01:08]} 15. Bg2 {[%clk 0:02:14]}  Bxg2 {[%clk 0:00:55]} 16. Rxg2 {[%clk 0:02:13]}  Nxe4 {[%clk 0:00:54]} 17. Nxe4 {[%clk 0:02:12]}  Rxe4 {[%clk 0:00:55]} 18. Qc3 {[%clk 0:01:39]}  Nd4 {[%clk 0:00:51]} 19. Qh3 {[%clk 0:01:36]}  Nf5 {[%clk 0:00:23]} 20. Ng3 {[%clk 0:00:48]}  Re3 {[%clk 0:00:22]} 21. Bc1 {[%clk 0:00:38]}  Rec3 {[%clk 0:00:20]} 22. Qg4 {[%clk 0:00:30]}  Nxg3 {[%clk 0:00:15]} 23. hxg3 {[%clk 0:00:31]}  Bg7 {[%clk 0:00:15]} 24. Bb2 {[%clk 0:00:30]}  Qc7 {[%clk 0:00:14]} 25. Qe2 {[%clk 0:00:17]}  a5 {[%clk 0:00:11]} 26. Qd2 {[%clk 0:00:17]}  Rc6 {[%clk 0:00:09]} 27. c4 {[%clk 0:00:16]}  Bxb2 {[%clk 0:00:08]} 28. Qxb2 {[%clk 0:00:16]}  a4 {[%clk 0:00:07]} 29. Rh2 {[%clk 0:00:17]}  f5 {[%clk 0:00:02]} 30. g4 {[%clk 0:00:17]}  Qf7 {[%clk 0:00:02]} 31. g5 {[%clk 0:00:16]}  axb3 {[%clk 0:00:02]} 32. axb3 {[%clk 0:00:17]}  b5 {[%clk 0:00:02]} 33. Rdh1 {[%clk 0:00:17]}  bxc4 {[%clk 0:00:02]} 34. Rxh7 {[%clk 0:00:16]}  Qxh7 {[%clk 0:00:03]} 35. Rxh7 {[%clk 0:00:16]}  Kxh7 {[%clk 0:00:04]} 36. Qh2+ {[%clk 0:00:17]}  Kg7 {[%clk 0:00:04]} 37. Qh6+ {[%clk 0:00:17]}  Kf7 {[%clk 0:00:05]} 38. Qh7+ {[%clk 0:00:17]}  Ke8 {[%clk 0:00:05]} 39. Qxg6+ {[%clk 0:00:17]}  Kd8 {[%clk 0:00:05]} 40. Qf6+ {[%clk 0:00:15]}  Kd7 {[%clk 0:00:05]} 41. Qxf5+ {[%clk 0:00:15]}  Kc7 {[%clk 0:00:06]} 42. Qf7+ {[%clk 0:00:15]}  Kb6 {[%clk 0:00:06]} 43. g6 {[%clk 0:00:16]}  c3 {[%clk 0:00:05]} 44. g7 {[%clk 0:00:14]}  c2+ {[%clk 0:00:06]} 45. Kc1 {[%clk 0:00:14]}  Ra8 {[%clk 0:00:06]} 46. Qf6 {[%clk 0:00:10]}  d5 {[%clk 0:00:07]} 47. Qd4+ {[%clk 0:00:09]}  Kb5 {[%clk 0:00:07]} 48. Qxd5+ {[%clk 0:00:07]}  Rc5 {[%clk 0:00:07]} 49. Qxa8 {[%clk 0:00:07]}  Kb4 {[%clk 0:00:07]} 50. Qf8 {[%clk 0:00:06]}  Kxb3 {[%clk 0:00:07]} 51. Qxc5 {[%clk 0:00:06]} 1-0


[Site "https://www.chess.com"]

[Event "Titled Tuesday Blitz March 29 Late 2022"]
[White "Gurevich, Dmitry"]
[Black "Mikhailov, Viacheslav"]
[WhiteFideId "2000407"]
[BlackFideId "4187369"]
[WhiteElo "2506"]
[BlackElo "2381"]
[Result "0-1"]
[Round "06"]
[TimeControl "180+1"]
[Date "2022.03.29"]
[WhiteClock "0:00:35"]
[BlackClock "0:00:19"]

1. d4 {[%clk 0:03:00]}  c5 {[%clk 0:02:59]} 2. d5 {[%clk 0:02:59]}  e5 {[%clk 0:02:56]} 3. e4 {[%clk 0:02:59]}  d6 {[%clk 0:02:56]} 4. Bb5+ {[%clk 0:02:58]}  Nd7 {[%clk 0:02:57]} 5. a4 {[%clk 0:02:58]}  a6 {[%clk 0:02:57]} 6. Be2 {[%clk 0:02:57]}  Be7 {[%clk 0:02:56]} 7. Nf3 {[%clk 0:02:56]}  Nf8 {[%clk 0:02:56]} 8. O-O {[%clk 0:02:55]}  Bg4 {[%clk 0:02:56]} 9. Nfd2 {[%clk 0:02:53]}  Bxe2 {[%clk 0:02:57]} 10. Qxe2 {[%clk 0:02:53]}  Ng6 {[%clk 0:02:58]} 11. g3 {[%clk 0:02:50]}  h5 {[%clk 0:02:57]} 12. h4 {[%clk 0:02:49]}  Bxh4 {[%clk 0:02:53]} 13. gxh4 {[%clk 0:02:47]}  Qxh4 {[%clk 0:02:54]} 14. Nf3 {[%clk 0:02:43]}  Qg4+ {[%clk 0:02:53]} 15. Kh1 {[%clk 0:02:43]}  Nh4 {[%clk 0:02:52]} 16. Rg1 {[%clk 0:02:38]}  Qxf3+ {[%clk 0:01:35]} 17. Qxf3 {[%clk 0:02:37]}  Nxf3 {[%clk 0:01:36]} 18. Rxg7 {[%clk 0:02:36]}  Nf6 {[%clk 0:01:36]} 19. Nc3 {[%clk 0:02:27]}  Ng4 {[%clk 0:01:28]} 20. Kg2 {[%clk 0:02:03]}  Ne1+ {[%clk 0:01:24]} 21. Kf1 {[%clk 0:02:02]}  Nxc2 {[%clk 0:01:25]} 22. Rb1 {[%clk 0:01:58]}  Kf8 {[%clk 0:01:24]} 23. Rg5 {[%clk 0:01:56]}  f6 {[%clk 0:01:23]} 24. Rf5 {[%clk 0:01:52]}  Nd4 {[%clk 0:01:23]} 25. b4 {[%clk 0:01:52]}  Nxf5 {[%clk 0:01:21]} 26. exf5 {[%clk 0:01:51]}  c4 {[%clk 0:01:03]} 27. f3 {[%clk 0:01:38]}  Nh6 {[%clk 0:01:00]} 28. Bxh6+ {[%clk 0:01:38]}  Rxh6 {[%clk 0:01:00]} 29. Ne4 {[%clk 0:01:38]}  Ke7 {[%clk 0:00:59]} 30. Kg2 {[%clk 0:01:34]}  h4 {[%clk 0:00:57]} 31. Kh3 {[%clk 0:01:34]}  Rg8 {[%clk 0:00:55]} 32. b5 {[%clk 0:01:32]}  a5 {[%clk 0:00:54]} 33. Rc1 {[%clk 0:01:30]}  Rc8 {[%clk 0:00:51]} 34. Nc3 {[%clk 0:01:18]}  Rh5 {[%clk 0:00:47]} 35. Ne4 {[%clk 0:01:10]}  Rxf5 {[%clk 0:00:44]} 36. Kg2 {[%clk 0:01:01]}  h3+ {[%clk 0:00:33]} 37. Kh2 {[%clk 0:00:57]}  Rxf3 {[%clk 0:00:33]} 38. Rg1 {[%clk 0:00:56]}  f5 {[%clk 0:00:21]} 39. Ng5 {[%clk 0:00:50]}  Rf2+ {[%clk 0:00:19]} 40. Kxh3 {[%clk 0:00:48]}  c3 {[%clk 0:00:19]} 41. Kg3 {[%clk 0:00:35]}  Rd2 {[%clk 0:00:19]} 0-1


[Site "https://www.chess.com"]

[Event "Titled Tuesday Blitz March 29 Late 2022"]
[White "Indjic, Aleksandar"]
[Black "Bordi, Kevin"]
[WhiteFideId "911925"]
[BlackFideId "621862"]
[WhiteElo "2616"]
[BlackElo "2809"]
[Result "1-0"]
[Round "06"]
[TimeControl "180+1"]
[Date "2022.03.29"]
[WhiteClock "0:01:35"]
[BlackClock "0:02:09"]

1. d4 {[%clk 0:03:00]}  d5 {[%clk 0:03:00]} 2. c4 {[%clk 0:03:01]}  c6 {[%clk 0:03:00]} 3. cxd5 {[%clk 0:03:00]}  cxd5 {[%clk 0:03:01]} 4. Bg5 {[%clk 0:03:00]}  Nc6 {[%clk 0:03:00]} 5. Nc3 {[%clk 0:02:59]}  Bf5 {[%clk 0:03:00]} 6. e3 {[%clk 0:02:52]}  h6 {[%clk 0:02:59]} 7. Bh4 {[%clk 0:02:51]}  Qb6 {[%clk 0:02:57]} 8. Qd2 {[%clk 0:01:56]}  O-O-O {[%clk 0:02:36]} 9. Bd3 {[%clk 0:01:52]}  Bxd3 {[%clk 0:02:34]} 10. Qxd3 {[%clk 0:01:53]}  e5 {[%clk 0:02:27]} 11. Bxd8 {[%clk 0:01:51]}  Qxd8 {[%clk 0:02:22]} 12. dxe5 {[%clk 0:01:50]}  Qb6 {[%clk 0:02:19]} 13. O-O-O {[%clk 0:01:47]}  Nge7 {[%clk 0:02:18]} 14. Nxd5 {[%clk 0:01:45]}  Qc5+ {[%clk 0:02:16]} 15. Nc3 {[%clk 0:01:44]}  Ng6 {[%clk 0:02:08]} 16. Qd7+ {[%clk 0:01:36]}  Kb8 {[%clk 0:02:08]} 17. Qe8+ {[%clk 0:01:36]}  Kc7 {[%clk 0:02:09]} 18. Qxf7+ {[%clk 0:01:35]} 1-0


[Site "https://www.chess.com"]

[Event "Titled Tuesday Blitz March 29 Late 2022"]
[White "Kadric, Denis"]
[Black "Petrovic, Aleksa"]
[WhiteFideId "14403803"]
[BlackFideId "967629"]
[WhiteElo "2657"]
[BlackElo "2245"]
[Result "0-1"]
[Round "06"]
[TimeControl "180+1"]
[Date "2022.03.29"]
[WhiteClock "0:02:50"]
[BlackClock "0:02:04"]

1. d3 {[%clk 0:03:00]}  d5 {[%clk 0:02:56]} 2. Nd2 {[%clk 0:03:00]}  Nf6 {[%clk 0:02:56]} 3. e4 {[%clk 0:03:01]}  c5 {[%clk 0:02:54]} 4. g3 {[%clk 0:03:00]}  e6 {[%clk 0:02:52]} 5. Bg2 {[%clk 0:03:01]}  Nc6 {[%clk 0:02:52]} 6. Nh3 {[%clk 0:03:01]}  Be7 {[%clk 0:02:49]} 7. O-O {[%clk 0:03:01]}  O-O {[%clk 0:02:49]} 8. c3 {[%clk 0:03:00]}  b6 {[%clk 0:02:47]} 9. Re1 {[%clk 0:02:55]}  Ba6 {[%clk 0:02:40]} 10. Bf1 {[%clk 0:02:50]}  dxe4 {[%clk 0:02:22]} 11. dxe4 {[%clk 0:02:51]}  Bxf1 {[%clk 0:02:22]} 12. Kxf1 {[%clk 0:02:52]}  Qd3+ {[%clk 0:02:20]} 13. Kg2 {[%clk 0:02:53]}  Rfd8 {[%clk 0:02:12]} 14. f4 {[%clk 0:02:50]}  Nxe4 {[%clk 0:02:04]} 0-1


[Site "https://www.chess.com"]

[Event "Titled Tuesday Blitz March 29 Late 2022"]
[White "Kazmaier, Daniel"]
[Black "Krstulovic, Alex"]
[WhiteFideId "2606089"]
[BlackFideId "760056"]
[WhiteElo "2389"]
[BlackElo "2193"]
[Result "0-1"]
[Round "06"]
[TimeControl "180+1"]
[Date "2022.03.30"]
[WhiteClock "0:00:14"]
[BlackClock "0:01:49"]

1. d4 {[%clk 0:03:00]}  Nf6 {[%clk 0:02:59]} 2. Nf3 {[%clk 0:02:59]}  d5 {[%clk 0:02:59]} 3. Bf4 {[%clk 0:03:00]}  c5 {[%clk 0:02:58]} 4. e3 {[%clk 0:03:00]}  e6 {[%clk 0:02:59]} 5. c3 {[%clk 0:03:01]}  Nc6 {[%clk 0:02:58]} 6. Nbd2 {[%clk 0:03:00]}  cxd4 {[%clk 0:02:58]} 7. exd4 {[%clk 0:03:00]}  Nh5 {[%clk 0:02:58]} 8. Bg5 {[%clk 0:02:57]}  f6 {[%clk 0:02:57]} 9. Be3 {[%clk 0:02:48]}  Bd6 {[%clk 0:02:56]} 10. g3 {[%clk 0:02:47]}  O-O {[%clk 0:02:56]} 11. Bg2 {[%clk 0:02:47]}  f5 {[%clk 0:02:55]} 12. Ne5 {[%clk 0:02:28]}  f4 {[%clk 0:02:55]} 13. Nxc6 {[%clk 0:02:12]}  bxc6 {[%clk 0:02:56]} 14. Qxh5 {[%clk 0:02:11]}  fxe3 {[%clk 0:02:56]} 15. fxe3 {[%clk 0:02:12]}  Rb8 {[%clk 0:02:55]} 16. b4 {[%clk 0:02:09]}  a5 {[%clk 0:02:53]} 17. a3 {[%clk 0:02:08]}  Ba6 {[%clk 0:02:50]} 18. e4 {[%clk 0:01:59]}  Qf6 {[%clk 0:02:43]} 19. Bf3 {[%clk 0:01:41]}  dxe4 {[%clk 0:02:43]} 20. Nxe4 {[%clk 0:01:41]}  Qxf3 {[%clk 0:02:42]} 21. Qxf3 {[%clk 0:01:42]}  Rxf3 {[%clk 0:02:43]} 22. Nxd6 {[%clk 0:01:42]}  Rd8 {[%clk 0:02:42]} 23. O-O-O {[%clk 0:01:01]}  Rxd6 {[%clk 0:02:39]} 24. Kb2 {[%clk 0:00:59]}  Rf2+ {[%clk 0:02:37]} 25. Kb3 {[%clk 0:00:58]}  Rd8 {[%clk 0:02:32]} 26. Rhe1 {[%clk 0:00:55]}  a4+ {[%clk 0:02:24]} 27. Kxa4 {[%clk 0:00:54]}  Bb5+ {[%clk 0:02:24]} 28. Ka5 {[%clk 0:00:47]}  Ra2 {[%clk 0:02:23]} 29. Kb6 {[%clk 0:00:38]}  Rxa3 {[%clk 0:02:21]} 30. Rxe6 {[%clk 0:00:38]}  Rxc3 {[%clk 0:02:21]} 31. d5 {[%clk 0:00:37]}  Ra3 {[%clk 0:02:06]} 32. d6 {[%clk 0:00:31]}  Rd7 {[%clk 0:01:52]} 33. Re7 {[%clk 0:00:24]}  Ra6+ {[%clk 0:01:52]} 34. Kc5 {[%clk 0:00:22]}  Rxe7 {[%clk 0:01:51]} 35. dxe7 {[%clk 0:00:21]}  Kf7 {[%clk 0:01:51]} 36. Re1 {[%clk 0:00:14]}  Ke8 {[%clk 0:01:49]} 0-1


[Site "https://www.chess.com"]

[Event "Titled Tuesday Blitz March 29 Late 2022"]
[White "Kosteniuk, Alexandra"]
[Black "Aldokhin, Ivan"]
[WhiteFideId "4128125"]
[BlackFideId "24115720"]
[WhiteElo "2469"]
[BlackElo "2231"]
[Result "1-0"]
[Round "06"]
[TimeControl "180+1"]
[Date "2022.03.29"]
[WhiteClock "0:00:35"]
[BlackClock "0:00:03"]

1. Nf3 {[%clk 0:03:00]}  Nf6 {[%clk 0:02:59]} 2. g3 {[%clk 0:03:01]}  g6 {[%clk 0:02:59]} 3. Bg2 {[%clk 0:03:01]}  Bg7 {[%clk 0:03:00]} 4. O-O {[%clk 0:03:01]}  O-O {[%clk 0:03:01]} 5. c4 {[%clk 0:03:02]}  d6 {[%clk 0:02:58]} 6. d4 {[%clk 0:03:01]}  Nbd7 {[%clk 0:02:57]} 7. Nc3 {[%clk 0:03:01]}  e5 {[%clk 0:02:57]} 8. dxe5 {[%clk 0:02:56]}  dxe5 {[%clk 0:02:46]} 9. Be3 {[%clk 0:02:56]}  Ng4 {[%clk 0:02:29]} 10. Bg5 {[%clk 0:02:55]}  f6 {[%clk 0:02:29]} 11. Bd2 {[%clk 0:02:52]}  Nb6 {[%clk 0:02:11]} 12. h3 {[%clk 0:02:34]}  Nh6 {[%clk 0:02:08]} 13. Qc1 {[%clk 0:02:34]}  Nf5 {[%clk 0:02:04]} 14. b3 {[%clk 0:02:32]}  Nd4 {[%clk 0:01:47]} 15. Rd1 {[%clk 0:02:27]}  Nxf3+ {[%clk 0:01:40]} 16. exf3 {[%clk 0:02:27]}  Be6 {[%clk 0:01:25]} 17. f4 {[%clk 0:02:26]}  Qc8 {[%clk 0:01:21]} 18. Kh2 {[%clk 0:02:25]}  Nd7 {[%clk 0:01:11]} 19. Qa3 {[%clk 0:02:17]}  Re8 {[%clk 0:01:06]} 20. c5 {[%clk 0:02:15]}  f5 {[%clk 0:00:53]} 21. c6 {[%clk 0:02:07]}  bxc6 {[%clk 0:00:53]} 22. Bxc6 {[%clk 0:02:06]}  exf4 {[%clk 0:00:52]} 23. gxf4 {[%clk 0:01:57]}  Nf6 {[%clk 0:00:28]} 24. Rac1 {[%clk 0:01:51]}  Rf8 {[%clk 0:00:22]} 25. Be3 {[%clk 0:01:46]}  Nh5 {[%clk 0:00:20]} 26. Bxa8 {[%clk 0:01:38]}  Qxa8 {[%clk 0:00:20]} 27. Qe7 {[%clk 0:01:37]}  Re8 {[%clk 0:00:18]} 28. Qxc7 {[%clk 0:01:33]}  Qf3 {[%clk 0:00:14]} 29. Rd8 {[%clk 0:01:31]}  Rxd8 {[%clk 0:00:03]} 30. Qxd8+ {[%clk 0:01:32]}  Kf7 {[%clk 0:00:04]} 31. Qd1 {[%clk 0:01:31]}  Qxd1 {[%clk 0:00:02]} 32. Nxd1 {[%clk 0:01:31]}  Bd5 {[%clk 0:00:03]} 33. Rc7+ {[%clk 0:01:30]}  Ke6 {[%clk 0:00:03]} 34. Rxa7 {[%clk 0:01:28]}  Bf3 {[%clk 0:00:03]} 35. Rxg7 {[%clk 0:01:22]}  Nxg7 {[%clk 0:00:04]} 36. Nc3 {[%clk 0:01:21]}  Ne8 {[%clk 0:00:04]} 37. Kg3 {[%clk 0:01:21]}  Ba8 {[%clk 0:00:03]} 38. a4 {[%clk 0:01:20]}  Nd6 {[%clk 0:00:04]} 39. f3 {[%clk 0:01:21]}  Kd7 {[%clk 0:00:03]} 40. Bd4 {[%clk 0:01:18]}  Kc6 {[%clk 0:00:04]} 41. Kf2 {[%clk 0:01:18]}  Nf7 {[%clk 0:00:02]} 42. Ke3 {[%clk 0:01:18]}  Nd8 {[%clk 0:00:03]} 43. b4 {[%clk 0:01:15]}  Ne6 {[%clk 0:00:04]} 44. Be5 {[%clk 0:01:16]}  Bb7 {[%clk 0:00:04]} 45. h4 {[%clk 0:01:10]}  Kb6 {[%clk 0:00:05]} 46. a5+ {[%clk 0:01:09]}  Ka6 {[%clk 0:00:05]} 47. Bd6 {[%clk 0:01:04]}  Bc6 {[%clk 0:00:05]} 48. Na2 {[%clk 0:00:48]}  Kb5 {[%clk 0:00:05]} 49. Nc1 {[%clk 0:00:48]}  Kc4 {[%clk 0:00:05]} 50. Nd3 {[%clk 0:00:47]}  Bb5 {[%clk 0:00:03]} 51. Ne5+ {[%clk 0:00:45]}  Kc3 {[%clk 0:00:04]} 52. Nf7 {[%clk 0:00:40]}  Kc4 {[%clk 0:00:04]} 53. Nh6 {[%clk 0:00:40]}  Nd4 {[%clk 0:00:04]} 54. Ng8 {[%clk 0:00:37]}  Nc2+ {[%clk 0:00:04]} 55. Kf2 {[%clk 0:00:37]}  Nd4 {[%clk 0:00:03]} 56. Nf6 {[%clk 0:00:36]}  h6 {[%clk 0:00:03]} 57. Ng8 {[%clk 0:00:35]}  h5 {[%clk 0:00:03]} 58. Ne7 {[%clk 0:00:35]} 1-0


[Site "https://www.chess.com"]